Cogmind - Beta 16 @@@ ROGUE MODE // 2025.11.29 @ 12:26:49 Player: abstractfish Result: Destroyed by D-53 Grenadier with Mini Grenade Launcher Performance ------------- Evolutions (0) 0 Regions Visited (2) 400 Robots Destroyed (12) 60 Value Destroyed (187) 187 Prototype IDs (1) 20 Alien Tech Used (0) 0 Bonus (0) 0 TOTAL SCORE: 667 Bonus ------- None Cogmind --------- Core Integrity 0/250 Matter 218/300 Energy 105/125 System Corruption 0% Temperature Cool (0) Movement Core (1000) Ox19 Location -10/Mines Parts ------- > --- POWER (1) -------- Light Ion Engine > --- PROPULSION (2) --- (None) > --- UTILITY (2) ------ High-capacity Storage Unit Sensor Drone Bay (20/20) > --- WEAPON (2) ------- EM Pulse Gun > --- INVENTORY (20) --- Ion Engine Light Treads Wheel Heat Sink Large Matter Pod (0) Terrain Scanner EM Pulse Gun Medium Laser Light Assault Rifle Light Assault Rifle Peak State ------------ > --- POWER ------------ Ion Engine > --- PROPULSION ------- Light Treads Light Treads > --- UTILITY ---------- High-capacity Storage Unit Sensor Drone Bay > --- WEAPON ----------- EM Pulse Gun EM Pulse Gun > --- INVENTORY -------- Light Ion Engine Light Treads Wheel Heat Sink Large Matter Pod Terrain Scanner EM Pulse Gun EM Pulse Gun Medium Laser Light Assault Rifle Light Assault Rifle [Rating: 15] Favorites ----------- Power Ion Engine Engine Ion Engine Propulsion Light Treads Treads Light Treads Wheel Compact Wheel Utility Terrain Scanner Device Terrain Scanner Storage High-capacity Storage Unit Weapon Light Assault Rifle Energy Gun Medium Laser Ballistic Gun Light Assault Rifle Build | -11 -10 -10 ------- Run | Yrd Mat Min Slots Evolved . | . . . Power . | . . . Propulsion . | . . . Utility . | . . . Weapon . | . . . Parts Attached 19 | 6 8 5 Power 4 | 2 1 1 Engine 4 | 2 1 1 Core . | . . . Reactor . | . . . Propulsion 3 | 1 2 . Treads 2 | . 2 . Leg . | . . . Wheel 1 | 1 . . Hover . | . . . Flight . | . . . Utility 4 | 1 2 1 Device 2 | . 1 1 Storage 2 | 1 1 . Processor . | . . . Hackware . | . . . Protection . | . . . Artifact . | . . . Weapon 8 | 2 3 3 Energy Gun 4 | . 1 3 Energy Cannon . | . . . Ballistic Gun 4 | 2 2 . Ballistic Cannon . | . . . Launcher . | . . . Special Weapon . | . . . Impact Weapon . | . . . Slashing Weapon . | . . . Piercing Weapon . | . . . Special Melee Weapon . | . . . Unidentified Prototypes 1 | . . 1 Parts Lost 6 | . 2 4 Power 1 | . 1 . Propulsion 3 | . 1 2 Utility . | . . . Weapon 2 | . . 2 Highest Loss Streak 4 | . 2 4 To Critical Strikes . | . . . Average Backups 6 | 2 6 10 Power . | . . 1 Propulsion 1 | 1 1 2 Utility 1 | . . 2 Weapon 3 | . 3 5 Tool/Special . | . . . Unused Backups 7 | 2 . 5 Power . | . . . Propulsion 4 | 2 . 2 Utility 2 | . . 2 Weapon 1 | . . 1 Tool/Special . | . . . Average Slot Usage (%) 95 | . 93 100 Engine 13 | . 13 14 Treads 23 | . 22 28 Wheel 1 | . 2 . Device 13 | . 12 14 Storage 14 | . 14 14 Energy Gun 14 | . 10 25 Ballistic Gun 13 | . 16 2 Peak Build Rating 15 | 5 8 15 Average Rating 6 | 3 6 8 On Entrance 4 | . 5 8 Avg Prop Armor Cover (%) . | . . . Naked Turns . | . . . Heaviest Build 63 | 12 49 63 Greatest Support 40 | 16 40 40 Greatest Overweight (x) 2 | . 2 1 Average Overweight (x) . | . . 1 Largest Inventory Capacity 20 | 8 20 20 Average Capacity 15 | 6 15 20 Most Carried 11 | 7 11 11 Average Carried 6 | 2 6 10 Final Capacity 20 | 8 20 20 Final Carried 10 | 5 10 10 Class Distribution -------------------- 100% | Mutant Dominant Class ---------------- Mutant | -10/Materials Mutant | -10/Mines Resources | -11 -10 -10 ----------- Run | Yrd Mat Min Matter Collected 411 | 177 202 32 Remotely . | . . . Salvage Created 234 | . 202 32 Parts 20 | . 15 5 Haulers Intercepted . | . . . Recyclers Shooed . | . . . Parts Field Recycled . | . . . Retrieved Matter . | . . . Parts Self-Destructed . | . . . Prevented . | . . . Parts Restored . | . . . Kills | -11 -10 -10 ------- Run | Yrd Mat Min Combat Hostiles Destroyed 11 | . 8 3 Guns 11 | . 8 3 Classes Destroyed 3 | . 3 . Watcher 1 | . 1 . Swarmer 9 | . 6 3 Grunt 2 | . 2 . Best Kill Streak 6 | . 6 3 Combat Bots Only 6 | . 6 3 Max Kills in Single Turn 1 | . 1 1 Gunslinging . | . . . Exploded . | . . . Melee . | . . . Uniques/NPCs Destroyed . | . . . Combat | -11 -10 -10 -------- Run | Yrd Mat Min Hostile Shots Fired 102 | . 84 18 Missed 22 | . 21 1 Hits 80 | . 63 17 Projectile 80 | . 63 17 AOE 12 | . . 12 Critical Strikes 1 | . 1 . Damage Taken 1093 | . 547 546 Core 255 | . 165 90 Absorbed by Shields . | . . . Core Remaining (%) 100 | 100 . . Volleys Fired 32 | 1 25 6 Largest 2 | 2 2 2 Hottest 70 | 40 70 70 Shots Fired 62 | 2 50 10 Gun 62 | 2 50 10 Cannon . | . . . Launcher . | . . . Special . | . . . Kinetic 45 | 2 39 4 Thermal 15 | . 11 4 Explosive . | . . . Electromagnetic 2 | . . 2 Robot Hit Streak 8 | . 8 1 Robot Miss Streak 4 | . 4 2 Penetration Max . | . . . Secondary Targets 4 | . 3 1 Max Gunslinging Chain 1 | . 1 1 Shots Hit Robots 30 | . 26 4 Core Hits 20 | . 17 3 Critical Kills . | . . . Critical Parts Destroyed . | . . . Critical Strikes 1 | . 1 . Burn 1 | . 1 . Melee Attacks . | . . . Impact . | . . . Slashing . | . . . Piercing . | . . . Sneak Attacks . | . . . Combat Hostiles . | . . . Follow-up Attacks . | . . . Damage Inflicted 290 | . 245 45 Guns 289 | . 244 45 Cannons . | . . . Explosions . | . . . Melee . | . . . Ramming 1 | . 1 . Kinetic 166 | . 156 10 Thermal 112 | . 88 24 Explosive . | . . . Electromagnetic 11 | . . 11 Impact . | . . . Slashing . | . . . Piercing . | . . . Highest Corruption . | . . . Average Corruption . | . . . Corruption Purged . | . . . Corruption Blocked . | . . . Overload Shots . | . . . Overflow Damage . | . . . Projectiles . | . . . Explosions . | . . . Melee . | . . . Knockbacks . | . . . Impact . | . . . Kinetic . | . . . Secondary . | . . . Self-Inflicted Damage . | . . . Shots . | . . . Rammed 1 | . 1 . Targets Rammed 1 | . 1 . Kicked . | . . . Crushed . | . . . Highest Temperature 148 | . 148 80 Average Temperature 58 | . 64 40 Received Heat Transfer 75 | . 75 . Siege Activations . | . . . Martial Activations . | . . . Shielding Activations . | . . . Robots Disrupted . | . . . Combat Hostiles . | . . . Robots Corrupted . | . . . Combat Hostiles . | . . . Parts Fried . | . . . Impact Corruptions . | . . . Robots Melted . | . . . Combat Hostiles . | . . . Parts Melted 3 | . 2 1 Heat Transferred 407 | . 333 74 Parts Sabotaged . | . . . Parts Stolen . | . . . Parts Stripped . | . . . Power Chain Reactions . | . . . Alert | -11 -10 -10 ------- Run | Yrd Mat Min Maximum Alert Level . | . . . Low Security (%) 100 | 100 100 100 Level 1 . | . . . Level 2 . | . . . Level 3 . | . . . Level 4 . | . . . Level 5 . | . . . High Security . | . . . Max Security . | . . . Peak Influence 125 | . 125 70 Initial . | . . . Average 22 | . 27 20 Influence Increases 289 | . 219 70 Destroy 0b10 Robot/C 220 | . 160 60 Destroy 0b10 Robot/NC 5 | . 5 . Destroy Leader 42 | . 32 10 Successful Hack 7 | . 7 . Lose Combat Pursuer 15 | . 15 . Influence Decreases 289 | . 219 70 Time Decay 269 | . 199 70 Lost Part 20 | . 20 . Squads Dispatched . | . . . Investigation . | . . . Extermination . | . . . Reinforcement . | . . . Assault . | . . . Garrison . | . . . Intercept . | . . . Searches Triggered . | . . . Construction Impeded . | . . . Haulers Reinforced . | . . . Active Scanning Responses . | . . . Cargo Convoy Interrupts . | . . . Stealth | -11 -10 -10 --------- Run | Yrd Mat Min Distress Signals . | . . . Communications Jammed . | . . . Distress Signals . | . . . Times Spotted 21 | . 16 5 Peak Tracking Total 8 | . 8 2 Tactical Retreats 1 | . 1 . Traps | -11 -10 -10 ------- Run | Yrd Mat Min Traps Triggered 3 | . 3 . Indirectly . | . . . Trap Hack Attempts . | . . . Triggered . | . . . Disarmed . | . . . Reprogrammed . | . . . Reused . | . . . Traps Extracted . | . . . Installed . | . . . Triggered . | . . . Machines | -11 -10 -10 ---------- Run | Yrd Mat Min Machines Disabled . | . . . Max in Single Turn . | . . . Machines Repaired . | . . . Machines Dismantled . | . . . Machines Sabotaged . | . . . Overloaded Fab Kills . | . . . Hacking | -11 -10 -10 --------- Run | Yrd Mat Min Machines Accessed 5 | . 3 2 Terminals 4 | . 3 1 Fabricators . | . . . Repair Stations . | . . . Recycling Units . | . . . Scanalyzers . | . . . Garrison Access . | . . . Total Hacks 11 | . 6 5 Successful 10 | . 6 4 Failed 1 | . . 1 Catastrophic . | . . . Database Lockouts . | . . . Manual . | . . . Terminals 10 | . 6 4 Fabricators . | . . . Repair Stations . | . . . Recycling Units . | . . . Scanalyzers . | . . . Garrison Access . | . . . Terminal Hacks 10 | . 6 4 Record 7 | . 4 3 Open Door 1 | . . 1 Branch Access Points 1 | . 1 . Alert Level 1 | . 1 . Fabricator Hacks . | . . . Repair Station Hacks . | . . . Recycling Unit Hacks . | . . . Scanalyzer . | . . . Garrison Access Hacks . | . . . Unauthorized Hacks . | . . . Terminals . | . . . Fabricators . | . . . Repair Stations . | . . . Recycling Units . | . . . Scanalyzers . | . . . Garrison Access . | . . . Data Cores Recovered . | . . . Used . | . . . Hacking Detections 2 | . 2 . Full Trace Events . | . . . Feedback Events . | . . . Feedback Blocked . | . . . Robot Schematics Acquired . | . . . Robots Built . | . . . Authchips . | . . . Time . | . . . Total Robot Build Rating . | . . . Part Schematics Acquired . | . . . Parts Built . | . . . Authchips . | . . . Time . | . . . Total Part Build Rating . | . . . Part Studies Acquired . | . . . Parts Repaired . | . . . Time . | . . . Parts Recycled . | . . . Recycled Matter . | . . . Retrieved Matter . | . . . Retrieved Components . | . . . Parts Scanalyzed . | . . . Part Schematics Acquired . | . . . Parts Damaged . | . . . Bothacking | -11 -10 -10 ------------ Run | Yrd Mat Min Used RIF Installer . | . . . Robots Hacked . | . . . Non-combat . | . . . Combat . | . . . Robot Hacks Applied . | . . . Relay Couplers Released . | . . . Fabnet Peak Effective % . | . . . Robots Rewired . | . . . Allies Hacked . | . . . Hacks Repelled . | . . . Allies | -11 -10 -10 -------- Run | Yrd Mat Min Total Allies . | . . . Largest Group . | . . . Highest-Rated Group . | . . . Highest-Rated Ally . | . . . Total Orders . | . . . Ally Attacks . | . . . Total Damage . | . . . Kills . | . . . Allies Corrupted . | . . . Allies Melted . | . . . Intel | -11 -10 -10 ------- Run | Yrd Mat Min Active Infowar (turns) 932 | . 692 240 Terrain 932 | . 692 240 Robot Analysis Total . | . . . Derelict Logs Recovered 1 | . . 1 Drone Launches . | . . . Drone Recoveries . | . . . Exploration | -11 -10 -10 ------------- Run | Yrd Mat Min Turns Passed 1108 | 120 739 249 Spaces Moved 522 | 90 338 94 Core 33 | 16 17 . Treads 334 | . 240 94 Legs . | . . . Wheels 155 | 74 81 . Hover . | . . . Flight . | . . . Fastest Speed 50 | 50 100 240 Average Speed 180 | 91 187 240 Slowest Speed 240 | 100 240 240 Overloaded Moves . | . . . Propulsion Burnouts . | . . . Robots Hopped . | . . . Potential Cave-ins . | . . . Cave-ins Triggered . | . . . Exploration Rate (%) 23 | 4 40 27 Regions Visited 2 Branch Regions 1 Pre-discovered Areas . | . . . Known Exits Taken 1 | . 1 . Unknown Exits Taken 1 | 1 . . Scrap Searched . | . . . Spaces Dug . | . . . Terrain Destroyed . | . . . Melee . | . . . Projectile . | . . . AOE . | . . . Terrain Rammed . | . . . Walls Destroyed . | . . . Machines Disabled . | . . . Actions | -11 -10 -10 --------- Run | Yrd Mat Min Total 633 | 125 401 107 Wait 15 | 13 1 1 Move 520 | 89 337 94 Hop . | . . . Pick Up 31 | 12 18 1 Fast Attach 1 | . 1 . Attach 16 | 5 10 1 Detach . | . . . Swap 11 | 3 4 4 Drop 6 | 2 4 . Fire 32 | 1 25 6 Melee . | . . . Ram 1 | . 1 . Kick . | . . . Crush . | . . . Escape Stasis . | . . . Rewire . | . . . Trap . | . . . Miscellaneous . | . . . Route ------- -11/Scrapyard -10/Materials (discovered 3 exits: [*Mat] / *Min x2) -10/Mines History --------- Turn | Location | Event 14 | -11/Scrapyard | Discovered new exit (range 16) 121 | -11/Scrapyard | Entered Materials 307 | -10/Materials | Identified exit to Mines 317 | -10/Materials | Build established: Mutant 420 | -10/Materials | Discovered new exit (range 15) 502 | -10/Materials | Core integrity fell below 50% 860 | -10/Materials | Entered Mines 923 | -10/Mines | Met a Derelict bent on vengeance 949 | -10/Mines | Learned 2 Materials zone layouts 1073 | -10/Mines | Assembled infested the area 1081 | -10/Mines | Found the Drone Emporium 1099 | -10/Mines | Found Prototype Device 1100 | -10/Mines | Identified Sensor Drone Bay 1102 | -10/Mines | Core integrity fell below 20% 1109 | -10/Mines | Destroyed by D-53 Grenadier with Mini Grenade Launcher Last Messages --------------- opened my Drone Emporium yet but am totally ready to tell them where they can shove that C&D." 01083_ SB-UGM(g): "I'm a fan of the free market. Free drones for all! No strings attached!" 01099_ Acquired Prototype Device. 01100_ C-45 Heavy ARC bursts open, deploying its payload. 01100_ D-53 Grenadier unfolds itself. 01100_ Machine disabled. 01100_ Identified Sensor Drone Bay. 01101_ D-53 Grenadier suffers critical hit (Burn). 01101_ SB-UGM(g) destroyed. 01103_ EM Pulse Gun destroyed. 01105_ Lgt. Treads destroyed. 01106_ The unstable cave ceiling collapses. 01107_ Lgt. Treads destroyed. 01107_ EM Pulse Gun destroyed. [Achievement: There's More Where That Came From] Map ----- +----------------------------------------------------+ | ???????????????????????????????????????? | | ???????????????????????????????????????? | | ???????????????????????????????????????? | | ???????????????????????????????????????? | | ???????????????????????????????????????? | | ???????????????????????????????????????? | | ?????????????????????????????#?????????? | | ????????????????????????????????????#??? | | ?????????????????????????????????????#?? | | ???????????????????????????????????????? | | ????????????????? ???????????###?####??? | | ????????????????? #?????????## ## ##?? | | ???????????????? ###??????# #?? | | ???????????????? ######## #?? | | ???????????????? ##? | | ????????????????# ## | | ???????????????## ?????# # | | ???????????????? ??????## | | ????????????????? ????????## | | ??????????#?###### ##?????????# ## | | ??????????### # #???????????# #? | | ??????????# ##?????????### #? | | ??????????# ##??????????## ## | | ??????????# d ####????????## ## | | ??????#???# % ##??####?## # | | ??????????## @ d #### ### # | | ??????????# X ## | | ??????????# #? | | ??????????## #t ##### ##? | | ???????????## ## ###???## ##?? | | ????????????####### ##??#???## ###?#? | | ??????????? #?????# ##??#?????####????? | | ??????????????????## #?##??????????????? | | ??????????????????## #???????????#?????? | | ???????????????????# #?????????????????? | | ???????????????????# ??????????????????? | | ???????????????????##??????????????????? | | ??????????????????????? ???????????????? | | ??????????????????????????????????????#? | | ??????????????????????? ???????????????? | | ?????????????????????????????????????#?? | | ???????????????????????????????????????? | | ???????????????????????????????????????? | | ???????????????????????????????????????? | | ???????????????????????????????????????? | | ???????????????????????????????????????? | | ???????????????????????????????????????? | | ???????????????????????????????????????? | | ???????????????????????????????????????? | | ???????????????????????????????????????? | +----------------------------------------------------+ Best States ------------- Heat Dissipation 25 Energy Generation 10 Energy Capacity 250 Matter Stores 248 Matter Capacity 300 Sight Range 16 Terrain Scan Range 14 Terrain Scan Density 10 Evasion (%) 40 Recoil Reduction 2 Item Schematics ----------------- None Robot Schematics ------------------ None Fabricated ------------ Nothing Repaired ---------- Nothing Studied --------- None Alien Tech Used ----------------- None Achievements -------------- DATA ERROR: Steam Global Achievement% For Emergencies Only There's More Where That Came From Challenges ------------ None Game ------ Seed CloakingMiningRay Manual? 0 Play Time 00:14:52 Cumulative 4.0 hours Start 2025.11.29 @ 12:05:10 End 2025.11.29 @ 12:26:49 Sessions 1 Manual Loads 0 Difficulty Rogue Special Mode None Game No. 9 Rogue 5 Adventurer 4 Explorer 0 Win Type - Total 0 Types 0/0/0/0/0/0/0/0/0/0 Lore% 1 Gallery% 5 Achievement% 5 Wizard Run 0 Options --------- Layout 1 ASCII 0 Keyboard 0 Movement Mouse Keybinds 0 Fullscreen 2 Font 24/Smallcaps Map View 50x35 Zoom Use 0% Tactical HUD 1 Map Filters NONE Filters NONE Steam 1 RUN: a2c3e135-a0a2-4151-a564-4dd2fcaed7cf